fUST/lending_fUST_20250609
["ID","MTS","AMOUNT","RATE_DAILY","PERIOD"]
[365026251,1749412242996,-151.0,0.0002131,2]
[365026252,1749412243007,-151.0,0.0002131,2]
[365026253,1749412243016,-151.0,0.0002131,2]
[365026254,1749412243026,-440.0,0.00021369,2]
[365026255,1749412243039,-252.1,0.00021369,2]
[365026256,1749412243048,-440.0,0.00021369,2]
[365026257,1749412243059,-686.14,0.00021369,2]
[365026258,1749412243069,-1799.44,0.00021369,2]
[365026259,1749412243078,-1235.66,0.00021369,2]
[365026260,1749412243089,-440.0,0.00021369,2]
[365026261,1749412243099,-440.0,0.00021369,2]
[365026262,1749412243108,-440.0,0.00021369,2]
[365026263,1749412243118,-440.0,0.00021369,2]
[365026264,1749412243128,-440.0,0.00021369,2]
[365026265,1749412243138,-440.0,0.00021369,2]
[365026266,1749412243148,-420.0,0.00021369,2]
[365026267,1749412243160,-364.94652429,0.00021369,2]
[365026268,1749412243170,-440.0,0.00021369,2]
[365026269,1749412243180,-1084.25,0.00021369,2]
[365026270,1749412243190,-1029.2,0.00021369,2]
[365026271,1749412243199,-1336.21,0.00021369,2]
[365026272,1749412243208,-151.0,0.00021369,2]
[365026273,1749412243218,-1203.52,0.00021369,2]
[365026274,1749412243227,-2138.02,0.00021369,2]
[365026275,1749412243238,-151.0,0.00021369,2]
[365026276,1749412243247,-440.0,0.00021369,2]
[365026278,1749412243257,-440.0,0.00021369,2]
[365026279,1749412243267,-440.0,0.00021369,2]
[365026280,1749412243276,-1283.81,0.00021369,2]
[365026282,1749412243285,-1566.93,0.00021369,2]
[365026283,1749412243295,-440.0,0.00021369,2]
[365026284,1749412243307,-416.68046993,0.00021369,2]
[365026285,1749412243319,-440.0,0.00021369,2]
[365026286,1749412243330,-440.0,0.00021369,2]
[365026287,1749412243340,-500.0,0.00021381,2]
[365026288,1749412243352,-600.0,0.00021381,2]
[365026289,1749412243362,-205.49080572,0.00021381,2]
[365026290,1749412243372,-433.57904682,0.00021381,2]
[365026291,1749412243381,-33251.86,0.000214,2]
[365026292,1749412243391,-151.0,0.000214,2]
[365026293,1749412243400,-13368.27005838,0.00021452,5]
[365026294,1749412243410,-587.0,0.00021574,2]
[365026295,1749412243420,-587.0,0.00021574,2]
[365026296,1749412243430,-151.0,0.00021614,2]
[365026297,1749412243440,-200.781427,0.00021614,2]
[365026298,1749412243450,-200.781427,0.00021614,2]
[365026299,1749412243461,-151.0,0.00021614,2]
[365026300,1749412243471,-13368.27005838,0.00021624,5]
[365026301,1749412243480,-151.0,0.00021643,2]
[365026302,1749412243490,-299.637199,0.00021643,2]
[365026303,1749412243499,-440.0,0.00021643,2]
[365026304,1749412243509,-209.970281,0.00021643,2]
[365026305,1749412243518,-209.970281,0.00021643,2]
[365026306,1749412243527,-151.0,0.00021643,2]
[365026307,1749412243536,-440.0,0.00021643,2]
[365026308,1749412243545,-686.14,0.00021643,2]
[365026309,1749412243555,-1799.44,0.00021643,2]
[365026310,1749412243564,-1235.66,0.00021643,2]
[365026311,1749412243575,-440.0,0.00021643,2]
[365026312,1749412243586,-440.0,0.00021643,2]
[365026313,1749412243596,-440.0,0.00021643,2]
[365026314,1749412243606,-440.0,0.00021643,2]
[365026315,1749412243616,-440.0,0.00021643,2]
[365026316,1749412243626,-440.0,0.00021643,2]
[365026317,1749412243635,-192.929993,0.00021643,2]
[365026318,1749412243645,-192.929993,0.00021643,2]
[365026319,1749412243655,-440.0,0.00021643,2]
[365026320,1749412243664,-1084.25,0.00021643,2]
[365026321,1749412243674,-1029.2,0.00021643,2]
[365026322,1749412243683,-1336.21,0.00021643,2]
[365026323,1749412243693,-1203.52,0.00021643,2]
[365026324,1749412243702,-2138.02,0.00021643,2]
[365026325,1749412243711,-440.0,0.00021643,2]
[365026326,1749412243720,-440.0,0.00021643,2]
[365026327,1749412243730,-440.0,0.00021643,2]
[365026328,1749412243739,-1283.81,0.00021643,2]
[365026329,1749412243748,-1566.93,0.00021643,2]
[365026330,1749412243758,-440.0,0.00021643,2]
[365026331,1749412243767,-440.0,0.00021643,2]
[365026332,1749412243777,-440.0,0.00021643,2]
[365026333,1749412243787,-500.0,0.00021658,2]
[365026334,1749412243796,-500.0,0.00021658,2]
[365026335,1749412243805,-500.0,0.00021658,2]
[365026336,1749412243816,-500.0,0.00021658,2]
[365026337,1749412243826,-500.0,0.00021658,2]
[365026338,1749412243835,-500.0,0.00021658,2]
[365026339,1749412243845,-500.0,0.00021658,2]
[365026340,1749412243854,-500.0,0.00021658,2]
[365026341,1749412243864,-500.0,0.00021658,2]
[365026342,1749412243874,-500.0,0.00021658,2]
[365026343,1749412243883,-500.0,0.00021658,2]
[365026344,1749412243892,-504.15916561,0.00021658,2]
[365026345,1749412243902,-151.0,0.00021686,2]
[365026346,1749412243912,-151.0,0.00021686,2]
[365026347,1749412243922,-364.8515477,0.00021699,2]
[365026348,1749412243932,-364.8515477,0.00021699,2]
[365026349,1749412243941,-364.8515477,0.00021699,2]
[365026350,1749412243951,-349.0981882,0.00021699,2]
[365026351,1749412243960,-390.73,0.000217,2]
[365026352,1749412243970,-500.0,0.0002179,2]
[365026353,1749412243979,-508.34367556,0.00021794,2]
[365026354,1749412243989,-151.0,0.00021796,2]
[365026355,1749412243998,-13368.27005838,0.00021797,6]
[365026356,1749412244008,-151.0,0.00021817,2]
[365026357,1749412244018,-151.0,0.00021817,2]
[365026358,1749412244027,-151.0,0.00021817,2]
[365026359,1749412244040,-151.0,0.00021817,2]
[365026360,1749412244050,-704.76,0.00021846,2]
[365026361,1749412244059,-1200.0,0.00021901,2]
[365026362,1749412244068,-440.0,0.00021917,2]
[365026363,1749412244079,-151.0,0.00021917,2]
[365026364,1749412244088,-440.0,0.00021917,2]
[365026365,1749412244097,-686.14,0.00021917,2]
[365026366,1749412244108,-1799.44,0.00021917,2]
[365026367,1749412244118,-1235.66,0.00021917,2]
[365026368,1749412244128,-440.0,0.00021917,2]
[365026369,1749412244137,-440.0,0.00021917,2]
[365026370,1749412244147,-151.0,0.00021917,2]
[365026371,1749412244157,-440.0,0.00021917,2]
[365026372,1749412244166,-440.0,0.00021917,2]
[365026373,1749412244175,-440.0,0.00021917,2]
[365026374,1749412244185,-151.0,0.00021917,2]
[365026375,1749412244194,-500.0,0.00021917,2]
[365026376,1749412244203,-440.0,0.00021917,2]
[365026377,1749412244213,-1084.25,0.00021917,2]
[365026378,1749412244222,-1029.2,0.00021917,2]
[365026379,1749412244231,-1336.21,0.00021917,2]
[365026380,1749412244241,-151.0,0.00021917,2]
[365026381,1749412244250,-1203.52,0.00021917,2]
[365026382,1749412244259,-2138.02,0.00021917,2]
[365026383,1749412244269,-440.0,0.00021917,2]
[365026384,1749412244278,-440.0,0.00021917,2]
[365026385,1749412244287,-440.0,0.00021917,2]
[365026386,1749412244296,-1283.81,0.00021917,2]
[365026387,1749412244305,-1566.93,0.00021917,2]
[365026388,1749412244315,-440.0,0.00021917,2]
[365026389,1749412244325,-440.0,0.00021917,2]
[365026390,1749412244334,-440.0,0.00021917,2]
[365026391,1749412244343,-1200.0,0.00021929,2]
[365026392,1749412244352,-704.76,0.00021946,3]
[365026393,1749412244362,-13368.27005838,0.00021969,6]
[365026394,1749412244371,-151.0,0.00021969,7]
[365026395,1749412244380,-628.0,0.00022,2]
[365026396,1749412244390,-198.0,0.00022,2]
[365026397,1749412244399,-704.76,0.00022046,5]
[365026398,1749412244408,-1689.94,0.000221,7]
[365026399,1749412244417,-176.7524085,0.0002211,2]
[365026400,1749412244426,-158.6873432,0.0002211,2]
[365026401,1749412244436,-153.0,0.0002211,2]
[365026402,1749412244445,-153.0,0.0002211,2]
[365026403,1749412244454,-573.126752,0.0002211,2]
[365026404,1749412244463,-176.7524085,0.0002211,2]
[365026405,1749412244472,-573.126752,0.0002211,2]
[365026406,1749412244481,-153.0,0.0002211,2]
[365026407,1749412244491,-153.0,0.0002211,2]
[365026408,1749412244603,-158.6873432,0.0002211,2]
[365026409,1749412244616,-158.6873432,0.0002211,2]
[365026410,1749412244626,-176.7524085,0.0002211,2]
[365026411,1749412244636,-573.126752,0.0002211,2]
[365026412,1749412244646,-153.0,0.0002211,2]
[365026413,1749412244655,-176.7524085,0.0002211,2]
[365026414,1749412244665,-158.6873432,0.0002211,2]
[365026415,1749412244675,-573.126752,0.0002211,2]
[365026416,1749412244684,-176.7524085,0.0002211,2]
[365026417,1749412244694,-573.126752,0.0002211,2]
[365026418,1749412244703,-317.3746864,0.0002211,2]
[365026419,1749412244713,-158.6873432,0.0002211,2]
[365026420,1749412244724,-573.126752,0.0002211,2]
[365026421,1749412244734,-158.6873432,0.0002211,2]
[365026422,1749412244744,-158.6873432,0.0002211,2]
[365026423,1749412244753,-153.0,0.0002211,2]
[365026424,1749412244763,-573.126752,0.0002211,2]
[365026425,1749412244772,-573.126752,0.0002211,2]
[365026426,1749412244782,-316.8712877,0.0002211,2]
[365026427,1749412244791,-1145.0324062,0.0002211,2]
[365026428,1749412244801,-573.126752,0.0002211,2]
[365026429,1749412244810,-1146.253504,0.0002211,2]
[365026430,1749412244819,-151.0,0.00022131,2]
[365026431,1749412244828,-151.0,0.00022131,2]
[365026432,1749412244838,-207.4,0.00022131,2]
[365026433,1749412244848,-236.72530795,0.00022131,2]
[365026434,1749412244857,-500.0,0.00022131,2]
[365026435,1749412244867,-500.0,0.00022131,2]
[365026436,1749412244876,-5000.0,0.00022131,2]
[365026437,1749412244886,-500.0,0.00022131,2]
[365026438,1749412244896,-500.0,0.00022131,2]
[365026439,1749412244906,-800.0,0.00022131,2]
[365026440,1749412244916,-800.0,0.00022131,2]
[365026441,1749412244926,-800.0,0.00022131,2]
[365026442,1749412244936,-800.0,0.00022131,2]
[365026443,1749412244946,-800.0,0.00022131,2]
[365026444,1749412244956,-800.0,0.00022131,2]
[365026445,1749412244965,-800.0,0.00022131,2]
[365026446,1749412244976,-400.0,0.00022131,2]
[365026447,1749412244986,-13368.27005838,0.00022141,6]
[365026448,1749412244996,-704.76,0.00022146,3]
[365026449,1749412245006,-440.0,0.00022191,4]
[365026450,1749412245015,-209.970281,0.00022191,7]
[365026451,1749412245025,-209.970281,0.00022191,7]
[365026452,1749412245037,-151.0,0.00022191,7]
[365026453,1749412245047,-440.0,0.00022191,4]
[365026454,1749412245056,-686.14,0.00022191,4]
[365026455,1749412245066,-1799.44,0.00022191,4]
[365026456,1749412245076,-1235.66,0.00022191,4]
[365026457,1749412245086,-440.0,0.00022191,4]
[365026458,1749412245096,-440.0,0.00022191,4]
[365026459,1749412245105,-440.0,0.00022191,4]
[365026460,1749412245115,-440.0,0.00022191,4]
[365026461,1749412245125,-440.0,0.00022191,4]
[365026462,1749412245135,-192.929993,0.00022191,7]
[365026463,1749412245145,-192.929993,0.00022191,7]
[365026464,1749412245155,-440.0,0.00022191,4]
[365026465,1749412245166,-1084.25,0.00022191,4]
[365026466,1749412245175,-1029.2,0.00022191,4]
[365026467,1749412245185,-1336.21,0.00022191,4]
[365026468,1749412245194,-1203.52,0.00022191,4]
[365026469,1749412245204,-2138.02,0.00022191,4]
[365026470,1749412245213,-440.0,0.00022191,4]
[365026471,1749412245222,-440.0,0.00022191,4]
[365026472,1749412245232,-440.0,0.00022191,4]
[365026473,1749412245243,-1283.81,0.00022191,4]
[365026474,1749412245253,-1566.93,0.00022191,4]
[365026475,1749412245263,-390.0,0.00022191,4]
[365026476,1749412245273,-351.47,0.00022191,4]
[365026477,1749412245283,-440.0,0.00022191,4]
[365026478,1749412245292,-151.0,0.000222,9]
[365026479,1749412245302,-500.0,0.00022206,2]
[365026480,1749412245311,-500.0,0.00022206,2]
[365026481,1749412245321,-508.513244,0.00022206,2]
[365026482,1749412245330,-1000.0,0.00022206,2]
[365026483,1749412245340,-704.76,0.00022246,7]
[365026484,1749412245350,-157.461156,0.00022266,2]
[365026485,1749412245359,-151.0,0.00022279,7]
[365026486,1749412245370,-151.0,0.00022279,7]
[365026487,1749412245380,-191.742793,0.00022279,7]
[365026488,1749412245389,-800.0,0.00022302,2]
[365026489,1749412245400,-13368.27005838,0.00022314,7]
[365026490,1749412245409,-153.246323,0.00022314,7]
[365026491,1749412245419,-500.0,0.00022338,2]
[365026492,1749412245429,-704.76,0.00022346,3]
[365026493,1749412245438,-33251.86,0.000224,2]
[365026494,1749412245447,-151.0,0.000224,7]
[365026495,1749412245457,-151.0,0.000224,7]
[365026496,1749412245466,-200.781427,0.000224,7]
[365026497,1749412245475,-200.781427,0.000224,7]
[365026498,1749412245485,-151.0,0.000224,7]
[365026499,1749412245494,-704.76,0.00022446,7]
[365026500,1749412245503,-200.0,0.00022464,2]
[365026501,1749412245513,-151.0,0.00022465,7]
[365026502,1749412245522,-151.0,0.00022465,7]
[365026503,1749412245531,-440.0,0.00022465,4]
[365026504,1749412245540,-156.599705,0.00022465,7]
[365026505,1749412245550,-440.0,0.00022465,4]
[365026506,1749412245559,-686.14,0.00022465,4]
[365026507,1749412245569,-1799.44,0.00022465,4]
[365026508,1749412245579,-1235.66,0.00022465,4]
[365026509,1749412245588,-440.0,0.00022465,4]
[365026510,1749412245597,-542.85,0.00022465,4]
[365026511,1749412245607,-160.02432,0.00022465,7]
[365026512,1749412245618,-440.0,0.00022465,4]
[365026513,1749412245628,-440.0,0.00022465,4]
[365026514,1749412245638,-440.0,0.00022465,4]
[365026515,1749412245648,-151.0,0.00022465,7]
[365026516,1749412245658,-549.35,0.00022465,4]
[365026517,1749412245668,-1084.25,0.00022465,4]
[365026518,1749412245677,-1029.2,0.00022465,4]
[365026519,1749412245687,-1336.21,0.00022465,4]
[365026520,1749412245696,-151.0,0.00022465,7]
[365026521,1749412245705,-1203.52,0.00022465,4]
[365026522,1749412245715,-2138.02,0.00022465,4]
[365026523,1749412245724,-440.0,0.00022465,4]
[365026524,1749412245734,-440.0,0.00022465,4]
[365026525,1749412245743,-440.0,0.00022465,4]
[365026526,1749412245753,-1283.81,0.00022465,4]
[365026527,1749412245762,-1566.93,0.00022465,4]
[365026528,1749412245771,-440.0,0.00022465,4]
[365026529,1749412245780,-1800.0,0.00022477,2]
[365026530,1749412245790,-151.0,0.00022486,7]
[365026531,1749412245799,-151.0,0.00022486,7]
[365026532,1749412245809,-13368.27005838,0.00022486,7]
[365026533,1749412245819,-151.0,0.00022503,7]
[365026534,1749412245828,-209.970281,0.00022546,7]
[365026535,1749412245838,-209.970281,0.00022546,7]
[365026536,1749412245848,-704.76,0.00022546,2]
[365026537,1749412245858,-151.0,0.000226,6]
[365026538,1749412245868,-265.491957,0.00022603,7]
[365026539,1749412245877,-192.929993,0.00022603,7]
[365026540,1749412245888,-192.929993,0.00022603,7]
[365026541,1749412245898,-5000.0,0.00022603,2]
[365026542,1749412245907,-704.76,0.00022646,2]
[365026543,1749412245917,-13368.27005838,0.00022659,7]
[365026544,1749412245926,-151.0,0.00022679,2]
[365026545,1749412245936,-5000.0,0.00022679,2]
[365026546,1749412245945,-151.0,0.00022739,7]
[365026547,1749412245957,-151.0,0.00022739,7]
[365026548,1749412245966,-151.0,0.00022739,7]
[365026549,1749412245976,-151.0,0.00022739,7]
[365026550,1749412245986,-151.0,0.00022739,7]
[365026551,1749412245997,-151.0,0.00022739,7]
[365026552,1749412246007,-151.000001,0.00022739,7]
[365026553,1749412246017,-440.0,0.00022739,4]
[365026554,1749412246028,-440.0,0.00022739,4]
[365026555,1749412246039,-686.14,0.00022739,4]
[365026556,1749412246049,-1799.44,0.00022739,4]
[365026557,1749412246060,-1235.66,0.00022739,4]
[365026558,1749412246070,-555.85,0.00022739,4]
[365026559,1749412246082,-440.0,0.00022739,4]
[365026560,1749412246092,-440.0,0.00022739,4]
[365026561,1749412246102,-440.0,0.00022739,4]
[365026562,1749412246113,-1084.25,0.00022739,4]
[365026563,1749412246123,-1029.2,0.00022739,4]
[365026564,1749412246132,-1336.21,0.00022739,4]
[365026565,1749412246142,-1203.52,0.00022739,4]
[365026566,1749412246151,-2138.02,0.00022739,4]
[365026567,1749412246161,-440.0,0.00022739,4]
[365026568,1749412246171,-478.43,0.00022739,4]
[365026569,1749412246181,-440.0,0.00022739,4]
[365026570,1749412246191,-1283.81,0.00022739,4]
[365026571,1749412246201,-1566.93,0.00022739,4]
[365026572,1749412246211,-440.0,0.00022739,4]
[365026573,1749412246220,-800.0,0.00022744,2]
[365026574,1749412246230,-704.76,0.00022746,4]
[365026575,1749412246240,-1500.0,0.00022754,2]
[365026576,1749412246249,-121411.59591787,0.0002277,2]
[365026577,1749412246259,-912.15993345,0.00022796,3]
[365026578,1749412246269,-390.73,0.000228,7]
[365026579,1749412246278,-682.0,0.00022808,2]
[365026580,1749412246289,-13368.27005838,0.00022831,8]
[365026581,1749412246299,-1518.79312,0.00022834,3]
[365026582,1749412246309,-704.76,0.00022846,7]
[365026583,1749412246319,-800.0,0.00022876,2]
[365026584,1749412246328,-153.0,0.00022877,2]
[365026585,1749412246339,-176.3065389,0.00022877,2]
[365026586,1749412246349,-153.0,0.00022877,2]
[365026587,1749412246359,-153.0,0.00022877,2]
[365026588,1749412246369,-153.0,0.00022877,2]
[365026589,1749412246378,-153.0,0.00022877,2]
[365026590,1749412246388,-153.0,0.00022877,2]
[365026591,1749412246398,-160.0,0.00022897,4]
[365026592,1749412246408,-151.0,0.000229,5]
[365026593,1749412246418,-158.6873432,0.00022904,2]
[365026594,1749412246428,-704.76,0.00022946,6]
[365026595,1749412246437,-153.701016,0.00022997,7]
[365026596,1749412246447,-151.0,0.00022997,7]
[365026597,1749412246457,-1200.0,0.00022997,2]
[365026598,1749412246467,-151.0,0.00022997,7]
[365026599,1749412246477,-167.2222613,0.00022998,2]
[365026600,1749412246486,-600.0,0.00023,120]
[365026601,1749412246495,-32680.89933984,0.00023,2]
[365026602,1749412246505,-623.95390499,0.00023,2]
[365026603,1749412246515,-2142.65736396,0.00023,30]
[365026604,1749412246524,-151.0,0.00023,7]
[365026605,1749412246534,-151.0,0.00023,7]
[365026606,1749412246543,-19629.31177253,0.00023,15]
[365026607,1749412246553,-460.84,0.00023,30]
[365026608,1749412246563,-151.0,0.00023,7]
[365026609,1749412246572,-160.0,0.00023,3]
[365026611,1749412246583,-151.0,0.00023,7]
[365026613,1749412246596,-151.0,0.00023,7]
[365026615,1749412246606,-209.970281,0.00023,7]
[365026617,1749412246615,-209.970281,0.00023,7]
[365026619,1749412246625,-151.0,0.00023,7]
[365026621,1749412246635,-423.98131849,0.00023,3]
[365026623,1749412246644,-192.929993,0.00023,7]
[365026625,1749412246654,-247.8257,0.00023,7]
[365026627,1749412246664,-192.929993,0.00023,7]
[365026629,1749412246673,-200.781427,0.00023,7]
[365026630,1749412246683,-200.781427,0.00023,7]
[365026631,1749412246694,-151.0,0.00023,7]
[365026632,1749412246704,-151.0,0.00023,7]
[365026633,1749412246714,-834.14724187,0.00023,3]
[365026635,1749412246723,-13368.27005838,0.00023003,8]
[365026637,1749412246733,-151.0,0.00023004,7]
[365026639,1749412246743,-151.0,0.00023013,7]
[365026641,1749412246752,-151.0,0.00023013,7]
[365026643,1749412246762,-151.0,0.00023013,7]
[365026644,1749412246772,-151.0,0.00023013,7]
[365026645,1749412246781,-151.0,0.00023013,7]
[365026646,1749412246793,-151.0,0.00023013,7]
[365026647,1749412246804,-151.0,0.00023013,7]
[365026648,1749412246813,-151.0,0.00023013,7]
[365026649,1749412246823,-366.083681,0.00023013,7]
[365026650,1749412246832,-366.083681,0.00023013,7]
[365026651,1749412246842,-151.0,0.00023013,7]
[365026653,1749412246852,-151.0,0.00023013,7]
[365026654,1749412246862,-151.0,0.00023013,7]
[365026655,1749412246871,-151.0,0.00023013,7]
[365026656,1749412246881,-151.0,0.00023013,7]
[365026657,1749412246890,-440.0,0.00023013,4]
[365026658,1749412246900,-440.0,0.00023013,4]
[365026659,1749412246910,-686.14,0.00023013,4]
[365026660,1749412246920,-1799.44,0.00023013,4]
[365026661,1749412246930,-1235.66,0.00023013,4]
[365026662,1749412246941,-440.0,0.00023013,4]
[365026663,1749412246952,-440.0,0.00023013,4]
[365026664,1749412247055,-440.0,0.00023013,4]
[365026665,1749412247076,-1084.25,0.00023013,4]
[365026666,1749412247086,-1029.2,0.00023013,4]
[365026667,1749412247096,-1336.21,0.00023013,4]
[365026668,1749412247108,-1203.52,0.00023013,4]
[365026669,1749412247119,-2138.02,0.00023013,4]
[365026670,1749412247129,-440.0,0.00023013,4]
[365026671,1749412247140,-440.0,0.00023013,4]
[365026672,1749412247150,-1283.81,0.00023013,4]
[365026673,1749412247160,-1566.93,0.00023013,4]
[365026674,1749412247170,-440.0,0.00023013,4]
[365026675,1749412247180,-2400.0,0.00023025,2]
[365026676,1749412247190,-157.461156,0.0002303,7]
[365026677,1749412247200,-704.76,0.00023046,3]
[365026678,1749412247210,-200.0,0.00023097,2]
[365026679,1749412247219,-111941.53585546,0.00023098,2]
[365026680,1749412247229,-151.0,0.00023098,7]
[365026681,1749412247239,-151.0,0.00023098,7]
[365026682,1749412247249,-151.0,0.00023098,7]
[365026683,1749412247260,-151.0,0.00023098,7]
[365026684,1749412247271,-151.0,0.00023098,7]
[365026685,1749412247282,-151.0,0.00023098,7]
[365026686,1749412247292,-151.0,0.00023098,7]
[365026687,1749412247302,-151.0,0.00023098,7]
[365026688,1749412247313,-151.0,0.00023098,7]
[365026689,1749412247324,-209.970281,0.00023098,7]
[365026690,1749412247334,-209.970281,0.00023098,7]
[365026691,1749412247345,-151.0,0.00023098,7]
[365026692,1749412247355,-151.0,0.00023098,7]
[365026693,1749412247365,-192.929993,0.00023098,7]
[365026694,1749412247375,-192.929993,0.00023098,7]
[365026695,1749412247385,-200.781427,0.00023098,7]
[365026696,1749412247395,-200.781427,0.00023098,7]
[365026697,1749412247405,-151.0,0.00023098,7]
[365026698,1749412247417,-151.0,0.00023098,7]
[365026699,1749412247427,-800.0,0.00023122,2]
[365026700,1749412247438,-200.48904439,0.0002314,2]
[365026701,1749412247449,-151.0,0.00023141,7]
[365026702,1749412247458,-151.0,0.00023141,7]
[365026703,1749412247468,-182.3413227,0.00023141,7]
[365026704,1749412247478,-704.76,0.00023146,3]
[365026705,1749412247489,-13368.27005838,0.00023176,8]
[365026706,1749412247499,-151.0,0.00023176,7]
[365026707,1749412247509,-283.888994,0.00023176,7]
[365026708,1749412247518,-1689.94,0.000232,7]
[365026709,1749412247528,-5000.0,0.00023227,2]
[365026710,1749412247538,-704.76,0.00023246,6]
[365026711,1749412247551,-500.0,0.00023273,2]
[365026712,1749412247561,-300.0,0.00023273,2]
[365026713,1749412247570,-151.0,0.00023287,7]
[365026714,1749412247580,-440.0,0.00023287,4]
[365026715,1749412247590,-440.0,0.00023287,4]
[365026716,1749412247599,-686.14,0.00023287,4]
[365026717,1749412247609,-1799.44,0.00023287,4]
[365026718,1749412247619,-1235.66,0.00023287,4]
[365026719,1749412247629,-440.0,0.00023287,4]
[365026720,1749412247638,-440.0,0.00023287,4]
[365026721,1749412247648,-440.0,0.00023287,4]
[365026722,1749412247658,-1084.25,0.00023287,4]
[365026723,1749412247669,-1029.2,0.00023287,4]
[365026724,1749412247681,-1336.21,0.00023287,4]
[365026725,1749412247692,-1203.52,0.00023287,4]
[365026726,1749412247702,-2138.02,0.00023287,4]
[365026727,1749412247711,-440.0,0.00023287,4]
[365026728,1749412247721,-440.0,0.00023287,4]
[365026729,1749412247732,-1283.81,0.00023287,4]
[365026730,1749412247741,-1566.93,0.00023287,4]
[365026731,1749412247751,-440.0,0.00023287,4]
[365026732,1749412247761,-173.02349563,0.0002329,4]
[365026733,1749412247770,-173.02349563,0.0002329,4]
[365026734,1749412247779,-173.02349563,0.0002329,4]
[365026735,1749412247788,-173.02349563,0.0002329,4]
[365026736,1749412247798,-173.02349563,0.0002329,4]
[365026737,1749412247807,-173.02349563,0.0002329,4]
[365026738,1749412247817,-173.02349563,0.0002329,4]
[365026739,1749412247827,-173.02349563,0.0002329,4]
[365026740,1749412247837,-173.02349563,0.0002329,4]
[365026741,1749412247849,-173.02349563,0.0002329,4]
[365026742,1749412247858,-173.02349563,0.0002329,4]
[365026743,1749412247867,-173.02349563,0.0002329,4]
[365026744,1749412247878,-173.02349563,0.0002329,4]
[365026745,1749412247887,-173.02349563,0.0002329,4]
[365026746,1749412247897,-173.02349563,0.0002329,4]
[365026747,1749412247907,-173.02349563,0.0002329,4]
[365026748,1749412247916,-173.02349563,0.0002329,4]
[365026749,1749412247925,-173.02349563,0.0002329,4]
[365026750,1749412247935,-173.02349563,0.0002329,4]
[365026751,1749412247945,-173.02,0.0002329,4]
[365026752,1749412247954,-403.72148981,0.0002329,4]
[365026753,1749412247963,-403.72148981,0.0002329,4]
[365026754,1749412247973,-403.72148981,0.0002329,4]
[365026755,1749412247982,-403.72148981,0.0002329,4]
[365026756,1749412247992,-403.72148981,0.0002329,4]
[365026757,1749412248002,-403.72148981,0.0002329,4]
[365026758,1749412248011,-403.72148981,0.0002329,4]
[365026759,1749412248021,-403.72148981,0.0002329,4]
[365026760,1749412248031,-403.72148981,0.0002329,4]
[365026761,1749412248045,-403.72148981,0.0002329,4]
[365026762,1749412248055,-403.72148981,0.0002329,4]
[365026763,1749412248065,-403.72148981,0.0002329,4]
[365026764,1749412248075,-403.72148981,0.0002329,4]
[365026765,1749412248084,-403.72148981,0.0002329,4]
[365026766,1749412248094,-403.72148981,0.0002329,4]
[365026767,1749412248103,-403.72148981,0.0002329,4]
[365026768,1749412248113,-403.72148981,0.0002329,4]